bitfinex/quotes_BTCUSD_20241119
["timestamp","ask_amount","ask_price","bid_price","bid_amount"]
[1732046137515,0.0017138,93255.0,93247.0,0.0008569]
[1732046137717,0.107239,93249.0,93247.0,0.0008569]
[1732046137947,0.21447,93253.0,93247.0,0.0008569]
[1732046138156,0.10724,93248.0,93247.0,0.0008569]
[1732046139489,0.321718,93250.0,93247.0,0.0008569]
[1732046139701,0.10724,93249.0,93247.0,0.0008569]
[1732046139921,0.10724,93248.0,93247.0,0.0008569]
[1732046140129,0.31239408,93248.0,93247.0,0.0008569]
[1732046140386,0.20515408,93248.0,93247.0,0.0008569]
[1732046140622,0.0017138,93255.0,93247.0,0.0008569]
[1732046140623,0.0017138,93255.0,93254.0,0.042893]
[1732046140833,0.0017138,93255.0,93254.0,0.29985555]
[1732046141051,0.0017138,93255.0,93254.0,0.30194597]
[1732046141295,0.0017138,93255.0,93254.0,0.26894597]
[1732046145223,0.0017138,93255.0,93254.0,0.30194597]
[1732046147042,0.0017138,93255.0,93254.0,0.29194597]
[1732046147718,0.0017138,93255.0,93254.0,0.15404597]
[1732046150320,0.0017138,93255.0,93254.0,0.04498342]
[1732046151078,0.1891458,93255.0,93254.0,0.00209042]
[1732046151328,0.1891458,93255.0,93248.0,0.0008556]
[1732046151329,0.0819138,93255.0,93248.0,0.0008556]
[1732046151540,0.0819138,93255.0,93254.0,0.042893]
[1732046151788,0.0819138,93255.0,93253.0,0.042893]
[1732046152020,0.0389138,93256.0,93255.0,0.042893]
[1732046152697,0.0017138,93258.0,93255.0,0.042893]
[1732046152698,0.0017138,93258.0,93257.0,0.042892]
[1732046153179,0.0017138,93258.0,93257.0,0.04495583]
[1732046162845,0.0017138,93258.0,93257.0,0.00206383]
[1732046163110,0.0017138,93258.0,93257.0,0.042892]
[1732046163324,0.0017138,93258.0,93257.0,0.04496439]
[1732046163974,0.2346428,93258.0,93257.0,0.00207239]
[1732046164650,0.107232,93255.0,93254.0,0.0008556]
[1732046165812,0.1274138,93258.0,93254.0,0.0008556]
[1732046166865,0.0394138,93258.0,93254.0,0.0008556]
[1732046167073,0.0394138,93258.0,93255.0,0.00197227]
[1732046167487,0.04252994,93260.0,93257.0,0.042892]
[1732046167756,0.04252994,93260.0,93259.0,0.042891]
[1732046167931,0.1,93261.0,93260.0,0.04289]
[1732046168350,0.0017112,93262.0,93256.0,0.042892]
[1732046168548,0.0017112,93262.0,93260.0,0.00197045]
[1732046168765,0.04473798,93262.0,93257.0,0.042891]
[1732046168981,0.0017112,93262.0,93257.0,0.042892]
[1732046169182,0.0017112,93262.0,93261.0,0.04289]
[1732046169614,0.0017112,93262.0,93261.0,0.04486215]
[1732046176199,0.0017112,93262.0,93261.0,0.1539247]
[1732046177436,0.0017112,93262.0,93261.0,0.2315247]
[1732046178402,0.0017112,93262.0,93261.0,0.2645247]
[1732046178668,0.0017138,93280.0,93261.0,0.2645247]
[1732046178669,0.0017138,93280.0,93279.0,0.042882]
[1732046178862,0.0017138,93280.0,93279.0,0.26254455]
[1732046179034,0.0017138,93280.0,93279.0,0.31914455]
[1732046179215,0.0017138,93282.0,93281.0,0.085881]
[1732046179440,0.04292795,93305.0,93299.0,0.042872]
[1732046179644,0.14160012,93324.0,93299.0,0.22953455]
[1732046179870,0.0466,93324.0,93299.0,0.2313608]
[1732046180095,0.09500012,93328.0,93299.0,0.2643608]
[1732046180307,0.09500012,93332.0,93299.0,0.2643608]
[1732046180508,0.0466,93334.0,93299.0,0.2643608]
[1732046180713,0.01980412,93333.0,93299.0,0.2643608]
[1732046180923,0.0437487,93323.0,93299.0,0.2643608]
[1732046181604,0.01980412,93333.0,93299.0,0.2643608]
[1732046181835,0.079,93335.0,93299.0,0.2643608]
[1732046181836,0.05916672,93335.0,93317.0,0.042864]
[1732046182056,0.05916672,93335.0,93318.0,0.085726]
[1732046182271,0.05916672,93335.0,93319.0,0.042863]
[1732046182709,0.05916672,93335.0,93312.0,0.042866]
[1732046182710,0.20999554,93335.0,93320.0,0.0018303]
[1732046182922,0.20999554,93335.0,93307.0,0.01]
[1732046182923,0.10285454,93335.0,93319.0,0.042863]
[1732046183147,0.10285454,93335.0,93322.0,0.042862]
[1732046183407,0.10285454,93335.0,93323.0,0.00182757]
[1732046183648,0.10906255,93334.0,93299.0,0.0776]
[1732046183856,0.1,93327.0,93292.0,0.042875]
[1732046184062,0.214314,93321.0,93300.0,0.00184756]
[1732046184283,0.0017112,93300.0,93299.0,0.042872]
[1732046184696,0.0017112,93300.0,93293.0,0.10906255]
[1732046185144,0.0017112,93300.0,93299.0,0.042872]
[1732046185365,0.0017112,93300.0,93298.0,0.042873]
[1732046185819,0.0017112,93300.0,93293.0,0.10906255]
[1732046187796,0.0017112,93300.0,93283.0,0.077]
[1732046188013,0.0017112,93300.0,93277.0,0.077]
[1732046188225,0.185488,93294.0,93269.0,0.077]
[1732046188448,0.185488,93294.0,93270.0,0.10906255]
[1732046188449,0.107189,93293.0,93270.0,0.10906255]
[1732046188663,0.0783,93294.0,93270.0,0.10906255]
[1732046189559,0.15656255,93293.0,93271.0,0.00188959]
[1732046189772,0.21438,93292.0,93271.0,0.11095214]
[1732046189997,0.10719,93292.0,93272.0,0.00188751]
[1732046190227,0.0475,93293.0,93272.0,0.00188751]
[1732046190678,0.154689,93293.0,93275.0,0.042883]
[1732046191353,0.154689,93293.0,93274.0,0.042883]
[1732046191354,0.0475,93293.0,93277.0,0.042883]
[1732046191594,0.10719,93292.0,93278.0,0.00188605]
[1732046191833,0.15469,93293.0,93274.0,0.042883]
[1732046192038,0.10719,93292.0,93275.0,0.00188908]
[1732046192241,0.0475,93293.0,93275.0,0.00188908]
[1732046192466,0.0475,93293.0,93277.0,0.042882]
[1732046192922,0.0475,93293.0,93278.0,0.00188605]
[1732046193142,0.0475,93293.0,93277.0,0.042882]
[1732046193611,0.12105394,93294.0,93278.0,0.1859486]
[1732046193612,0.04275394,93294.0,93278.0,0.1859486]
[1732046193843,0.18947,93310.0,93278.0,0.1859486]
[1732046194105,0.04562423,93300.0,93282.0,0.01]
[1732046194335,0.0017112,93300.0,93283.0,0.10906255]
[1732046194555,0.0017112,93300.0,93283.0,0.00186842]
[1732046194797,0.1088922,93300.0,93283.0,0.04474842]
[1732046195020,0.0017112,93300.0,93283.0,0.00186842]
[1732046195459,0.0017112,93300.0,93278.0,0.075]
[1732046195460,0.214364,93299.0,93280.0,0.042881]
[1732046195681,0.0819,93297.0,93278.0,0.10906255]
[1732046195902,0.107187,93295.0,93281.0,0.00189936]
[1732046196125,0.0819,93297.0,93278.0,0.10906255]
[1732046196360,0.107187,93295.0,93282.0,0.00188855]
[1732046196621,0.107187,93295.0,93270.0,0.042886]
[1732046196622,0.0474,93292.0,93283.0,0.00188754]
[1732046196848,0.0474,93292.0,93277.0,0.0008549]
[1732046196849,0.107193,93290.0,93277.0,0.0008549]
[1732046197071,0.261781,93292.0,93284.0,0.00188476]
[1732046197301,0.0474,93292.0,93277.0,0.0008549]
[1732046197527,0.0474,93292.0,93285.0,0.0018903]
[1732046197740,0.0474,93292.0,93277.0,0.0008549]
[1732046197972,0.107194,93289.0,93277.0,0.0008549]
[1732046198184,0.214385,93290.0,93278.0,0.00189737]
[1732046198427,0.0474,93292.0,93277.0,0.0008549]
[1732046198886,0.214402,93283.0,93277.0,0.0008549]
[1732046199090,0.107204,93280.0,93277.0,0.0008549]
[1732046199507,0.214402,93283.0,93277.0,0.0008549]
[1732046199748,0.214403,93282.0,93277.0,0.0008549]
[1732046199984,0.32344455,93291.0,93277.0,0.0008549]
[1732046199985,0.12295408,93283.0,93277.0,0.0008549]
[1732046200208,0.285806,93278.0,93277.0,0.0008549]
[1732046200456,0.39486855,93278.0,93277.0,0.0008549]
[1732046200907,0.53748968,93278.0,93277.0,0.0008549]
[1732046201141,0.44286855,93278.0,93277.0,0.0008549]
[1732046202050,0.48720696,93278.0,93277.0,0.0008549]
[1732046203373,0.58189904,93278.0,93277.0,0.0008549]
[1732046203590,0.48720696,93278.0,93277.0,0.0008549]
[1732046203817,0.62913866,93278.0,93277.0,0.0008549]
[1732046204524,0.62913866,93278.0,93277.0,0.5008549]
[1732046204525,0.48720696,93278.0,93277.0,0.5008549]
[1732046204751,0.49720696,93278.0,93277.0,0.50278424]
[1732046204974,0.48720696,93278.0,93277.0,0.50278424]
[1732046205418,0.48720696,93278.0,93277.0,0.5008549]
[1732046205637,0.48920696,93278.0,93277.0,0.50278424]
[1732046206509,0.58382241,93278.0,93277.0,0.50278424]
[1732046206944,0.58382241,93278.0,93256.0,0.0008556]
[1732046206945,0.38000096,93278.0,93256.0,0.0008556]
[1732046207167,0.107224,93262.0,93256.0,0.0008556]
[1732046207626,0.107221,93266.0,93256.0,0.0008556]
[1732046207848,0.214439,93267.0,93256.0,0.0008556]
[1732046208069,0.107223,93264.0,93259.0,0.00182822]
[1732046208288,0.107224,93263.0,93256.0,0.0008556]
[1732046208507,0.107224,93263.0,93260.0,0.00182519]
[1732046208709,0.107224,93263.0,93256.0,0.0008556]
[1732046208935,0.107224,93263.0,93261.0,0.00182317]
[1732046209150,0.214431,93270.0,93256.0,0.0437476]
[1732046209393,0.214435,93268.0,93256.0,0.0008556]
[1732046209607,0.1,93270.0,93257.0,0.042892]
[1732046209825,0.214433,93269.0,93257.0,0.042892]
[1732046210043,0.214433,93269.0,93256.0,0.0008556]
[1732046210044,0.321652,93268.0,93256.0,0.0008556]
[1732046210276,0.214433,93269.0,93256.0,0.0008556]
[1732046210500,0.042865,93269.0,93256.0,0.0008556]
[1732046210725,0.214435,93268.0,93256.0,0.0008556]
[1732046210946,0.107224,93262.0,93256.0,0.0008556]
[1732046211867,0.214442,93265.0,93256.0,0.0008556]
[1732046212061,0.042865,93269.0,93256.0,0.0008556]
[1732046212281,0.214435,93268.0,93256.0,0.0008556]
[1732046212722,0.107224,93263.0,93256.0,0.0008556]
[1732046214248,0.214442,93265.0,93259.0,0.00187129]
[1732046214457,0.042865,93269.0,93256.0,0.0008556]
[1732046214673,0.107226,93261.0,93256.0,0.0008556]
[1732046214882,0.107223,93263.0,93256.0,0.0008556]
[1732046215501,0.214435,93268.0,93256.0,0.0544706]
[1732046215724,0.107223,93264.0,93256.0,0.0008556]
[1732046215933,0.107223,93263.0,93256.0,0.0008556]
[1732046216160,0.107227,93260.0,93259.0,0.00186665]
[1732046216602,0.042865,93269.0,93256.0,0.0008556]
[1732046216821,0.107225,93262.0,93256.0,0.0008556]
[1732046217113,0.107225,93262.0,93259.0,0.00186463]
[1732046217337,0.107225,93262.0,93256.0,0.0008556]
[1732046217338,0.01974025,93261.0,93256.0,0.0008556]
[1732046217562,0.12696525,93261.0,93260.0,0.00186362]
[1732046217782,0.01973762,93261.0,93256.0,0.0008556]
[1732046217998,0.01973762,93260.0,93256.0,0.0008556]
[1732046218215,0.107224,93262.0,93259.0,0.00186362]
[1732046218440,0.01974314,93261.0,93256.0,0.0008556]
[1732046218652,0.01974314,93260.0,93256.0,0.0008556]
[1732046218870,0.01974314,93259.0,93256.0,0.0008556]
[1732046219096,0.01974314,93261.0,93256.0,0.0008556]
[1732046219316,0.107228,93259.0,93256.0,0.0008556]
[1732046219551,0.12697114,93259.0,93256.0,0.0008556]
[1732046219778,0.01974314,93259.0,93256.0,0.0008556]
[1732046220456,0.12697114,93259.0,93256.0,0.0008556]
[1732046220682,0.01974314,93259.0,93256.0,0.0008556]
[1732046220913,0.12697114,93259.0,93256.0,0.0008556]
[1732046221163,0.01974314,93259.0,93256.0,0.0008556]
[1732046221607,0.12697114,93259.0,93256.0,0.0008556]
[1732046221824,0.46486514,93259.0,93256.0,0.0008556]
[1732046222044,0.445122,93259.0,93256.0,0.0008556]
[1732046222287,0.45459055,93259.0,93256.0,0.0008556]
[1732046222955,0.02,93257.0,93256.0,0.0008556]
[1732046223162,0.38429255,93257.0,93256.0,0.0008556]
[1732046223601,0.117239,93249.0,93248.0,0.0008556]
[1732046223814,0.44925563,93249.0,93248.0,0.0008556]
[1732046224464,0.53155563,93249.0,93248.0,0.0008556]
[1732046224749,0.52955563,93249.0,93248.0,0.0008556]
[1732046224985,0.57755563,93249.0,93248.0,0.0008556]
[1732046225876,0.58755563,93249.0,93248.0,0.0008556]
[1732046226539,0.58955563,93249.0,93248.0,0.0008556]
[1732046226987,0.63345665,93249.0,93248.0,0.0008556]
[1732046227448,0.63145665,93249.0,93248.0,0.0008556]
[1732046228537,0.22724,93248.0,93233.0,0.0151016]
[1732046228750,0.33630255,93248.0,93233.0,0.0151016]
[1732046229175,0.33830255,93248.0,93233.0,0.0151016]
[1732046229415,0.227257,93234.0,93233.0,0.0151016]
[1732046229625,0.46127363,93234.0,93233.0,0.0151016]
[1732046229881,0.45927363,93234.0,93233.0,0.0151016]
[1732046230963,0.46127363,93234.0,93233.0,0.0151016]
[1732046231832,0.45927363,93234.0,93233.0,0.0151016]
[1732046233415,0.46127363,93234.0,93233.0,0.0151016]
[1732046233625,0.45927363,93234.0,93233.0,0.0151016]
[1732046234052,0.46127363,93234.0,93233.0,0.0151016]
[1732046234728,0.45927363,93234.0,93233.0,0.0151016]
[1732046234987,0.50326333,93234.0,93233.0,0.0151016]
[1732046236271,0.50526333,93234.0,93233.0,0.0151016]
[1732046238264,0.50526333,93234.0,93233.0,0.000505]
[1732046240322,0.50526333,93234.0,93211.0,0.0004]
[1732046240323,0.207273,93220.0,93211.0,0.0004]
[1732046240544,0.43928963,93220.0,93211.0,0.0004]
[1732046241864,0.33201663,93220.0,93211.0,0.0004]
[1732046242076,0.43928963,93220.0,93211.0,0.0004]
[1732046242294,0.48328295,93220.0,93211.0,0.0004]
[1732046244267,0.37600995,93220.0,93139.0,0.0008557]
[1732046244473,0.28976255,93219.0,93171.0,0.0104]
[1732046244689,0.28976255,93219.0,93197.0,0.053649]
[1732046244690,0.107293,93203.0,93197.0,0.053649]
[1732046245145,0.107293,93203.0,93198.0,0.05565694]
[1732046245595,0.107291,93205.0,93199.0,0.053648]
[1732046245812,0.107289,93206.0,93198.0,0.00200794]
[1732046246032,0.21456,93214.0,93200.0,0.00200845]
[1732046246033,0.107291,93205.0,93200.0,0.00200845]
[1732046246253,0.107291,93204.0,93199.0,0.053648]
[1732046246484,0.107292,93204.0,93199.0,0.053648]
[1732046246760,0.107293,93203.0,93200.0,0.00200744]
[1732046247006,0.1,93200.0,93187.0,0.0461]
[1732046247245,0.107305,93192.0,93187.0,0.0461]
[1732046247487,0.107305,93192.0,93185.0,0.0807566]
[1732046248147,0.12701351,93192.0,93185.0,0.0008566]
[1732046248365,0.12701796,93192.0,93185.0,0.0008566]
[1732046249278,0.23608051,93192.0,93185.0,0.0008566]
[1732046250426,0.37931663,93192.0,93185.0,0.0008566]
[1732046251094,0.45721663,93192.0,93185.0,0.0008566]
[1732046251532,0.43750367,93192.0,93185.0,0.0008566]
[1732046252001,0.44750367,93192.0,93185.0,0.0008566]
[1732046252489,0.109312,93186.0,93185.0,0.0008566]
[1732046252705,0.32637455,93186.0,93185.0,0.0008566]
[1732046252916,0.39334552,93186.0,93185.0,0.0008566]
[1732046253377,0.39534552,93186.0,93185.0,0.0008566]
[1732046254084,0.39534552,93186.0,93171.0,0.0004]
[1732046254085,0.207328,93172.0,93171.0,0.0004]
[1732046254327,0.43934463,93172.0,93171.0,0.0004]
[1732046255219,0.1,93175.0,93171.0,0.0004]
[1732046255455,0.1,93178.0,93171.0,0.0004]
[1732046255456,0.207321,93178.0,93171.0,0.0004]
[1732046255716,0.207321,93178.0,93172.0,0.00183602]
[1732046255958,0.143667,93178.0,93171.0,0.0004]
[1732046256215,0.250988,93178.0,93171.0,0.0004]
[1732046256461,0.35831,93178.0,93172.0,0.00183602]
[1732046256691,0.1,93174.0,93171.0,0.0004]
[1732046256930,0.107323,93177.0,93171.0,0.0004]
[1732046257144,0.107325,93175.0,93171.0,0.0004]
[1732046257357,0.10732,93179.0,93172.0,0.00203901]
[1732046257571,0.214636,93181.0,93171.0,0.0004]
[1732046257779,0.10906255,93182.0,93172.0,0.053664]
[1732046257998,0.214636,93181.0,93172.0,0.00183875]
[1732046258245,0.214638,93180.0,93172.0,0.00183875]
[1732046258484,0.16722273,93186.0,93171.0,0.0004]
[1732046258697,0.16722273,93186.0,93172.0,0.0821]
[1732046258698,0.04426865,93186.0,93172.0,0.0821]
[1732046258912,0.10731,93188.0,93179.0,0.053659]
[1732046259124,0.107313,93185.0,93173.0,0.053663]
[1732046259346,0.107313,93185.0,93180.0,0.00183784]
[1732046259565,0.107313,93185.0,93174.0,0.053662]
[1732046259787,0.214615,93190.0,93181.0,0.002038]
[1732046259997,0.1,93190.0,93172.0,0.0821]
[1732046260215,0.107313,93185.0,93172.0,0.0821]
[1732046260426,0.1,93190.0,93172.0,0.0821]
[1732046260427,0.107311,93187.0,93172.0,0.0821]
[1732046260649,0.214619,93188.0,93173.0,0.00204609]
[1732046260863,0.214617,93189.0,93173.0,0.00204609]
[1732046261110,0.1,93190.0,93173.0,0.00204609]
[1732046261336,0.214636,93181.0,93173.0,0.00204609]
[1732046261563,0.214636,93181.0,93172.0,0.0821]
[1732046261564,0.107319,93180.0,93172.0,0.0821]
[1732046261780,0.0752,93179.0,93171.0,0.0004]
[1732046262016,0.107328,93172.0,93171.0,0.0004]
[1732046262268,0.10906255,93178.0,93171.0,0.0004]
[1732046262489,0.107327,93173.0,93171.0,0.0004]
[1732046262723,0.107328,93172.0,93171.0,0.0004]
[1732046263187,0.214642,93178.0,93171.0,0.0004]
[1732046263410,0.107324,93176.0,93171.0,0.0004]
[1732046264068,0.1,93179.0,93171.0,0.0004]
[1732046264290,0.16572311,93183.0,93171.0,0.0004]
[1732046264515,0.1,93181.0,93171.0,0.0004]
[1732046264728,0.107324,93176.0,93171.0,0.0004]
[1732046264940,0.1,93181.0,93171.0,0.0004]
[1732046265370,0.1,93179.0,93171.0,0.0004]
[1732046265588,0.04276903,93183.0,93171.0,0.0004]
[1732046265810,0.1,93186.0,93171.0,0.0004]
[1732046266029,0.107324,93176.0,93171.0,0.0004]
[1732046266261,0.214626,93185.0,93171.0,0.0004]
[1732046266262,0.107328,93172.0,93171.0,0.0004]
[1732046266928,0.10700602,93172.0,93171.0,0.0012562]
[1732046269021,0.22703347,93172.0,93171.0,0.0012562]
[1732046269487,0.33609602,93172.0,93171.0,0.0012562]
[1732046269719,0.45809602,93172.0,93171.0,0.0012562]
[1732046269935,0.45609602,93172.0,93171.0,0.0012562]
[1732046270168,0.45609602,93172.0,93169.0,0.0008556]
[1732046270169,0.21733,93170.0,93169.0,0.0008556]
[1732046270397,0.20733,93170.0,93169.0,0.0008556]
[1732046270849,0.04322745,93172.0,93169.0,0.0008556]
[1732046271070,0.1,93182.0,93169.0,0.0008556]
[1732046271312,0.1,93182.0,93170.0,0.00186417]
[1732046271521,0.1,93180.0,93169.0,0.0008556]
[1732046271756,0.21464,93179.0,93169.0,0.0008556]
[1732046271997,0.1,93180.0,93169.0,0.0008556]
[1732046272431,0.207322,93178.0,93169.0,0.0008556]
[1732046272651,0.107322,93178.0,93169.0,0.0008556]
[1732046272874,0.1,93178.0,93169.0,0.0008556]
[1732046273125,0.23028408,93170.0,93169.0,0.0008556]
[1732046273615,0.10733,93170.0,93169.0,0.0008556]
[1732046273841,0.52256163,93177.0,93169.0,0.0008556]
[1732046273842,0.10906255,93177.0,93169.0,0.0008556]
[1732046274073,0.107325,93175.0,93169.0,0.0008556]
[1732046274281,0.107327,93173.0,93169.0,0.0008556]
[1732046274715,0.10906255,93177.0,93169.0,0.0008556]
[1732046274970,0.10733,93170.0,93169.0,0.0008556]
[1732046275393,0.107328,93172.0,93169.0,0.0008556]
[1732046275631,0.10733,93171.0,93169.0,0.0008556]
[1732046276056,0.10733,93170.0,93169.0,0.0008556]
[1732046279832,0.15008061,93170.0,93169.0,0.0008556]
[1732046280080,0.25914316,93170.0,93169.0,0.0008556]
[1732046280298,0.25914316,93170.0,93162.0,0.0008557]
[1732046280299,0.13495408,93163.0,93162.0,5e-07]
[1732046280543,0.48228852,93163.0,93162.0,5e-07]
[1732046280770,0.47228921,93163.0,93162.0,5e-07]
[1732046280979,0.43935463,93163.0,93162.0,5e-07]
[1732046281223,0.53392068,93163.0,93162.0,5e-07]
[1732046281506,0.49229416,93163.0,93162.0,5e-07]
[1732046281724,0.63417465,93163.0,93162.0,5e-07]
[1732046281963,0.207344,93158.0,93157.0,0.0299605]
[1732046282178,0.50116845,93158.0,93157.0,0.0299605]
[1732046282394,0.7084159,93158.0,93157.0,0.0299605]
[1732046283060,0.01,93149.0,93139.0,0.0008557]
[1732046283357,0.34031108,93147.0,93139.0,0.0008557]
[1732046283591,0.48229253,93147.0,93139.0,0.0008557]
[1732046284276,0.6240613,93147.0,93139.0,0.0008557]
[1732046285161,0.44937363,93147.0,93139.0,0.0008557]
[1732046285400,0.54388019,93147.0,93139.0,0.0008557]
[1732046285619,0.44937363,93147.0,93139.0,0.0008557]
[1732046286073,0.83106325,93147.0,93139.0,0.0008557]
[1732046286290,0.4822631,93147.0,93139.0,0.0008557]
[1732046286515,0.207365,93140.0,93139.0,0.0008557]
[1732046286755,0.53386668,93140.0,93139.0,0.0008557]
[1732046286989,0.33201663,93140.0,93139.0,0.0008557]
[1732046287208,0.43938163,93140.0,93139.0,0.0008557]
[1732046287889,0.54386668,93140.0,93139.0,0.0008557]
[1732046288337,0.54382539,93140.0,93139.0,0.0008557]
[1732046288811,0.1,93130.0,93104.0,0.0764]
[1732046289052,0.33033508,93126.0,93104.0,0.0764]
[1732046289266,0.33033508,93126.0,93088.0,0.0488]
[1732046289267,0.53559763,93126.0,93088.0,0.0488]
[1732046289519,0.53559763,93126.0,93092.0,0.0787]
[1732046289736,0.31644355,93126.0,93094.0,0.01]
[1732046289973,0.32644355,93126.0,93092.0,0.0787]
[1732046290408,0.37054986,93126.0,93092.0,0.0787]
[1732046290630,0.37054986,93126.0,93094.0,0.053708]
[1732046291078,0.37054986,93126.0,93092.0,0.0787]
[1732046291795,0.37054986,93126.0,93098.0,0.053706]
[1732046292039,0.36054986,93126.0,93096.0,0.053707]
[1732046292296,0.37054986,93126.0,93092.0,0.0787]
[1732046292514,0.37054986,93126.0,93094.0,0.053708]
[1732046292720,0.37054986,93126.0,93095.0,0.053708]
[1732046292937,0.36054986,93126.0,93104.0,0.053702]
[1732046293158,0.36054986,93126.0,93101.0,0.053705]
[1732046293373,0.37254986,93126.0,93093.0,0.01]
[1732046293586,0.37054986,93126.0,93093.0,0.01]
[1732046294018,0.25148731,93126.0,93097.0,0.0108563]
[1732046294258,0.04410631,93126.0,93114.0,0.0773]
[1732046294756,0.107381,93126.0,93114.0,0.0773]
[1732046294993,0.214755,93129.0,93114.0,0.0773]
[1732046295227,0.10738,93127.0,93114.0,0.0773]
[1732046295434,0.12295408,93130.0,93114.0,0.0773]
[1732046295685,0.10738,93127.0,93114.0,0.0773]
[1732046295918,0.107381,93126.0,93114.0,0.0773]
[1732046296131,0.107379,93128.0,93114.0,0.0773]
[1732046296346,0.12295408,93130.0,93114.0,0.0773]
[1732046296584,0.04297593,93131.0,93115.0,0.01]
[1732046296812,0.04297593,93131.0,93127.0,0.1316]
[1732046297038,0.20163429,93156.0,93139.0,0.053682]
[1732046297273,0.04284089,93140.0,93137.0,0.053683]
[1732046297497,0.33764708,93157.0,93137.0,0.053683]
[1732046297725,0.107349,93154.0,93137.0,0.053683]
[1732046297938,0.10735,93153.0,93135.0,0.10737]
[1732046298149,0.12295408,93157.0,93138.0,0.00194418]
[1732046298368,0.12295408,93157.0,93131.0,0.053687]
[1732046298369,0.12295408,93157.0,93142.0,0.05368]
[1732046298631,0.12295408,93157.0,93131.0,0.053687]
[1732046298839,0.12295408,93157.0,93129.0,0.01]
[1732046298840,0.107357,93148.0,93143.0,0.00174794]
[1732046299069,0.107358,93147.0,93130.0,0.10906255]
[1732046299326,0.12295408,93157.0,93130.0,0.10906255]
[1732046299547,0.12295408,93157.0,93077.0,0.09664804]
[1732046299548,0.107354,93149.0,93121.0,0.01]
[1732046299763,0.12295408,93150.0,93127.0,0.0819]
[1732046299764,0.107379,93128.0,93127.0,0.0819]
[1732046301075,0.12295408,93138.0,93127.0,0.0819]
[1732046301832,0.12295408,93138.0,93097.0,0.0008563]
[1732046301833,0.01,93096.0,93058.0,0.0202596]
[1732046302104,0.00558,93127.0,93058.0,0.0202596]
[1732046302105,0.01,93062.0,93061.0,0.04335733]
[1732046302315,0.1,93062.0,93058.0,0.0202596]
[1732046302559,0.01,93069.0,93058.0,0.0202596]
[1732046303055,0.1,93074.0,93058.0,0.0202596]
[1732046303056,0.14391481,93074.0,93058.0,0.0202596]
[1732046303295,0.05411951,93080.0,93058.0,0.0202596]
[1732046303579,0.01,93078.0,93059.0,0.10906255]
[1732046303805,0.01,93077.0,93058.0,0.0202596]
[1732046304018,0.10745,93067.0,93058.0,0.0202596]
[1732046304232,0.01,93077.0,93058.0,0.0202596]
[1732046304440,0.107447,93069.0,93058.0,0.0202596]
[1732046304891,0.01,93077.0,93058.0,0.0202596]
[1732046305100,0.107447,93069.0,93058.0,0.0202596]
[1732046305308,0.107448,93068.0,93058.0,0.0202596]
[1732046305546,0.21489,93071.0,93058.0,0.0202596]
[1732046306245,0.107448,93068.0,93058.0,0.0202596]
[1732046306464,0.01,93077.0,93058.0,0.0202596]
[1732046306707,0.214882,93074.0,93058.0,0.0202596]
[1732046306931,0.01,93077.0,93058.0,0.0202596]
[1732046307161,0.214878,93076.0,93058.0,0.0202596]
[1732046307434,0.01,93077.0,93058.0,0.0202596]
[1732046307657,0.01,93078.0,93058.0,0.0202596]
[1732046307900,0.214878,93076.0,93058.0,0.0202596]
[1732046308119,0.214882,93074.0,93058.0,0.0202596]
[1732046308339,0.107448,93068.0,93058.0,0.0202596]
[1732046308566,0.214893,93070.0,93058.0,0.0202596]
[1732046308783,0.107447,93069.0,93058.0,0.0202596]
[1732046308992,0.01,93076.0,93046.0,0.053736]
[1732046309201,0.01,93076.0,93047.0,0.10906255]
[1732046309202,0.10745,93067.0,93047.0,0.10906255]
[1732046309423,0.002,93071.0,93047.0,0.10906255]
[1732046309652,0.002,93071.0,93047.0,0.11092298]
[1732046309936,0.01,93076.0,93047.0,0.11092298]
[1732046310169,0.002,93064.0,93048.0,0.053735]
[1732046310382,0.10745,93067.0,93049.0,0.10906255]
[1732046310620,0.107451,93066.0,93049.0,0.11090878]
[1732046310827,0.107449,93068.0,93049.0,0.11090878]
[1732046311044,0.214885,93073.0,93049.0,0.11090878]
[1732046311261,0.01,93076.0,93049.0,0.11090878]
[1732046311262,0.002,93065.0,93049.0,0.10906255]
[1732046311486,0.02,93076.0,93050.0,0.00180086]
[1732046311487,0.002,93057.0,93050.0,0.00180086]
[1732046311712,0.12295408,93059.0,93050.0,0.00180086]
[1732046311713,0.107467,93052.0,93050.0,0.00180086]
[1732046311947,0.107466,93052.0,93033.0,0.053744]
[1732046312169,0.002,93057.0,93033.0,0.053744]
[1732046312170,0.107461,93057.0,93034.0,0.10906255]
[1732046312391,0.107475,93045.0,93034.0,0.10906255]
[1732046312615,0.214933,93052.0,93035.0,0.00170043]
[1732046312846,0.214949,93046.0,93021.0,0.128751]
[1732046313090,0.214941,93049.0,93022.0,0.10906255]
[1732046313324,0.107473,93046.0,93027.0,0.053747]
[1732046313528,0.107473,93046.0,93028.0,0.16280955]
[1732046313773,0.107473,93046.0,93028.0,0.16450781]
[1732046314007,0.107469,93050.0,93029.0,0.053746]
[1732046314230,0.107472,93048.0,93030.0,0.16280855]
[1732046314473,0.107468,93051.0,93031.0,0.053745]
[1732046314690,0.107468,93051.0,93030.0,0.10906255]
[1732046314691,0.04274373,93052.0,93032.0,0.10906255]
[1732046314899,0.04274373,93052.0,93032.0,0.11076183]
[1732046315120,0.002,93053.0,93032.0,0.16280655]
[1732046315346,0.107467,93052.0,93034.0,0.053743]
[1732046315557,0.002,93053.0,93033.0,0.00160589]
[1732046315774,0.107469,93050.0,93035.0,0.00160284]
[1732046315984,0.107469,93050.0,93034.0,0.05534787]
[1732046316156,0.002,93053.0,93036.0,0.00161195]
[1732046316369,0.002,93049.0,93035.0,0.05536945]
[1732046316569,0.109466,93053.0,93037.0,0.16443102]
[1732046316775,0.002,93053.0,93037.0,0.16280355]
[1732046316984,0.214923,93057.0,93037.0,0.16280355]
[1732046316985,0.107464,93054.0,93038.0,0.05536557]
[1732046317214,0.01,93055.0,93038.0,0.00162457]
[1732046317585,0.01,93055.0,93039.0,0.00163819]
[1732046317586,0.214931,93053.0,93039.0,0.00163819]
[1732046317796,0.01,93055.0,93031.0,0.053745]
[1732046317797,0.214933,93052.0,93031.0,0.053745]
[1732046317997,0.01,93055.0,93040.0,0.00163515]
[1732046318211,0.01,93055.0,93037.0,0.053742]
[1732046318212,0.107468,93051.0,93037.0,0.053742]